[Event "Sardinia World Festival-A 2024"]
[Site "Orosei"]
[Date "2024.04.30"]
[Round "5.50"]
[White "Cilenti, Giuseppe Maria"]
[Black "Krishnan Vishwanathan"]
[Result "1/2-1/2"]
[ECO "C28"]
[WhiteElo "1574"]
[BlackElo "1575"]
[Annotator "NA RC"]
[PlyCount "62"]
[EventDate "2024.04.26"]
[EventType "swiss"]
[EventCountry "ITA"]
[SourceTitle "playchess.com"]
[Source "ChessBase"]
[SourceQuality "1"]
[TimeControl "40/5400+30:1800+30"]

1. e4 {[%emt 0:00:06]} e5 {[%emt 0:00:07]} 2. Bc4 {[%emt 0:00:13]} Nc6 {[%emt 0:00:28]} 3. Nc3 {[%emt 0:00:20]} Nf6 {[%emt 0:00:14]} 4. d3 {[%emt 0:00:32]} h6 {[%emt 0:00:21]} 5. f4 {[%emt 0:03:27]} Bc5 {[%emt 0:02:54]} 6. Na4 {[%emt 0:04:17]} Bxg1 {[%emt 0:00:49]} 7. Rxg1 {[%emt 0:00:16]} d6 {[%emt 0:00:11]} 8. f5 {[%emt 0:05:38]} d5 {[%emt 0:01:02]} 9. exd5 {[%emt 0:05:57]} Nxd5 {[%emt 0:00:09]} 10. g4 {[%emt 0:05:52]} Qh4+ {[%emt 0:09:33]} 11. Kf1 {[%emt 0:03:55]} Qh3+ {[%emt 0:01:37]} 12. Rg2 {[%emt 0:02:55]} Ne3+ {[%emt 0:00:14]} 13. Bxe3 {[%emt 0:00:35]} Qxe3 {[%emt 0:00:05]} 14. Qe2 {[%emt 0:14:03]} Qxe2+ {[%emt 0:02:06]} 15. Rxe2 {[%emt 0:00:17]} f6 {[%emt 0:00:04]} 16. Nc5 {[%emt 0:04:16]} h5 {[%emt 0:00:16]} 17. Be6 {[%emt 0:03:19]} Nd4 {[%emt 0:00:26]} 18. Rf2 {[%emt 0:06:13]} Bxe6 {[%emt 0:01:23]} 19. fxe6 {[%emt 0:04:19]} b6 {[%emt 0:00:07]} 20. Ne4 {[%emt 0:08:32]} Nxe6 {[%emt 0:00:05]} 21. gxh5 {[%emt 0:03:35]} Rxh5 {[%emt 0:00:07]} 22. Rg2 {[%emt 0:01:55]} Kf7 {[%emt 0:00:11]} 23. Ng3 {[%emt 0:00:46]} Rh7 {[%emt 0:00:05]} 24. Kg1 {[%emt 0:01:09]} Rah8 {[%emt 0:00:09]} 25. Rd1 {[%emt 0:02:40]} Nf4 {[%emt 0:00:08]} 26. Rgd2 {[%emt 0:01:49]} c5 {[%emt 0:00:18]} 27. Ne4 {[%emt 0:02:05]} Ke6 {[%emt 0:01:28]} 28. Rf1 {[%emt 0:01:16]} f5 {[%emt 0:03:11]} 29. Ng5+ {[%emt 0:01:01]} Kf6 {[%emt 0:00:19]} 30. Nxh7+ {[%emt 0:00:10]} Rxh7 {[%emt 0:00:02]} 31. Kh1 {[%emt 0:03:16]} g5 {[%emt 0:00:07]} 1/2-1/2

[Event "Sardinia World Festival-A 2024"]
[Site "Orosei"]
[Date "2024.05.01"]
[Round "6.1"]
[White "Parkhov, Yair"]
[Black "Pichot, Alan"]
[Result "1/2-1/2"]
[ECO "E24"]
[WhiteElo "2513"]
[BlackElo "2644"]
[Annotator "TA"]
[PlyCount "83"]
[EventDate "2024.04.26"]
[EventType "swiss"]
[EventCountry "ITA"]
[SourceTitle "playchess.com"]
[Source "ChessBase"]
[SourceQuality "1"]
[TimeControl "40/5400+30:1800+30"]

{[%evp 11,83,8,8,0,25,15,31,0,20,0,28,0,0,0,25,33,27,0,7,0,39,37,32,39,40,27,36,43,62,66,63,0,0,-23,-26,-32,-19,-41,0,-22,-14,-25,-25,-25,-25,-25,-15,-17,-17,-35,-8,-8,-8,-8,-8,-8,-8,-8,-8,-8,0,0,0,0,0,0,0,0,0,0,0,0,0,0]} 1. d4 {[%emt 0:01:57]} d5 {[%emt 0:00:07]} 2. c4 {[%emt 0:00:20]} e6 {[%emt 0:00:09]} 3. Nc3 {[%emt 0:00:29]} Bb4 {[%emt 0:00:17]} 4. a3 {[%emt 0:02:13]} Bxc3+ {[%emt 0:00:27]} 5. bxc3 {[%emt 0:00:12]} Nf6 {[%emt 0:02:12]} 6. cxd5 {[%emt 0:00:18]} exd5 {[%emt 0:05:29][%cal Oc7c5]} 7. e3 {[%emt 0:00:05]} Bf5 {[%emt 0:01:05]} 8. f3 {[%emt 0:00:09]} h5 {[%emt 0:12:21]} 9. Nh3 {[%emt 0:07:06] White is slightly better.} O-O {[%emt 0:06:01]} 10. Bd3 {[%emt 0:03:11]} Qd7 {[%emt 0:09:56]} 11. Ng5 {[%emt 0:09:40]} c5 {[%emt 0:01:27]} 12. O-O {[%emt 0:00:14]} (12. dxc5 Bxd3 13. Qxd3 Rc8 $17) 12... cxd4 {[%emt 0:04:42]} 13. cxd4 {[%emt 0:02:02]} Nc6 {[%emt 0:02:02]} 14. Bxf5 {[%emt 0:11:41]} Qxf5 {[%emt 0:00:09] [#]} 15. e4 $1 {[%emt 0:00:06]} Qg6 {[%emt 0:03:55]} (15... dxe4 16. fxe4) 16. e5 {[%emt 0:02:35][%cal Of3f4] Strongly threatening f4!} Nh7 {[%emt 0:02:30]} 17. Nh3 {[%emt 0:07:41]} Rad8 {[%emt 0:04:10]} 18. Nf4 {[%emt 0:03:39]} Qf5 {[%emt 0:00:09]} 19. Ra2 {[%emt 0:01:10]} Rfe8 {[%emt 0:07:56]} 20. Rb2 {[%emt 0:04:30]} b6 {[%emt 0:10:24]} 21. Rb5 {[%emt 0:10:36]} (21. Ne2 $14) 21... Ng5 $11 {[%emt 0:08:53]} 22. Rxd5 {[%emt 0:02:08]} ({Don't play} 22. Nxd5 Ne6 23. Bb2 Rd7 $15) 22... Ne6 {[%emt 0:02:40]} 23. Rxd8 {[%emt 0:08:24]} Rxd8 {[%emt 0:10:01]} 24. Nxe6 {[%emt 0:00:38]} fxe6 {[%emt 0:00:01]} 25. Be3 {[%emt 0:01:22] [#]} Nxd4 $1 {[%emt 0:00:07]} 26. Bxd4 {[%emt 0:01:10] Threatens to win with Re1.} Qf4 {[%emt 0:00:03]} 27. g3 {[%emt 0:07:07]} Qxd4+ {[%emt 0:00:06]} 28. Qxd4 {[%emt 0:00:04]} Rxd4 {[%emt 0:00:07][%mdl 4096] Endgame. KR-KR} 29. Rc1 {[%emt 0:00:04]} Ra4 {[%emt 0:02:41]} 30. Rc3 {[%emt 0:01:05]} Kf7 {[%emt 0:00:30]} 31. f4 {[%emt 0:04:24] The position is equal.} Kg6 {[%emt 0:00:35]} 32. Kg2 {[%emt 0:01:00]} b5 {[%emt 0:01:11]} 33. Kf3 {[%emt 0:02:32]} Kf5 {[%emt 0:02:35]} 34. h3 {[%emt 0:00:21][%cal Bh2h3,Bh3g4][%mdl 32]} g5 {[%emt 0:00:08][%cal Rg5f4]} 35. g4+ {[%emt 0:00:04]} hxg4+ {[%emt 0:00:05]} 36. hxg4+ {[%emt 0:00:04]} Kg6 {[%emt 0:00:06]} 37. f5+ {[%emt 0:00:23]} exf5 {[%emt 0:03:43]} 38. Rc6+ {[%emt 0:00:04]} Kg7 {[%emt 0:00:00]} 39. Rc7+ {[%emt 0:00:12]} (39. gxf5 $5 Rf4+ $8 (39... Rxa3+ $2 40. Ke4 $18) 40. Kg3 Rxf5 41. Ra6 $11) 39... Kg6 {[%emt 0:00:00]} 40. Rc6+ {[%emt 0:00:05]} Kg7 {[%emt 0:00:00]} 41. Rc7+ {[%emt 0:30:05]} (41. gxf5 $5 Rf4+ $8 (41... Rxa3+ $2 {loses.} 42. Ke4 $18) 42. Kg3 Rxf5 43. Ra6 $11) 41... Kg6 {[%emt 0:05:48]} 42. Rc6+ {[%emt 0:10:20] Weighted Error Value: White=0.10 (very precise) /Black=0.09 (flawless) .  Mistake:       	White=1     	---        Inaccurate:     	White=2     	Black=4      OK:         	White=11    	Black=12     Best:        	White=6     	Black=3} 1/2-1/2

[Event "Sardinia World Festival-A 2024"]
[Site "Orosei"]
[Date "2024.05.01"]
[Round "6.2"]
[White "Moroni, Luca Jr"]
[Black "Chigaev, Maksim"]
[Result "1/2-1/2"]
[ECO "D85"]
[WhiteElo "2580"]
[BlackElo "2621"]
[Annotator "TA"]
[PlyCount "39"]
[EventDate "2024.04.26"]
[EventType "swiss"]
[EventCountry "ITA"]
[SourceTitle "playchess.com"]
[Source "ChessBase"]
[SourceQuality "1"]
[TimeControl "40/5400+30:1800+30"]

{[%evp 21,39,10,27,18,13,2,10,15,18,19,25,0,0,0,0,0,0,0,0,0]} 1. d4 {[%emt 0:00:03]} Nf6 {[%emt 0:00:06]} 2. c4 {[%emt 0:00:05]} g6 {[%emt 0:00:29]} 3. Nc3 {[%emt 0:00:16]} d5 {[%emt 0:00:09]} 4. cxd5 {[%emt 0:01:01]} Nxd5 {[%emt 0:00:07]} 5. e4 {[%emt 0:00:55]} Nxc3 {[%emt 0:00:06]} 6. bxc3 {[%emt 0:00:03]} Bg7 {[%emt 0:00:08]} 7. Bb5+ {[%emt 0:01:12]} c6 {[%emt 0:00:20]} 8. Ba4 {[%emt 0:00:04]} O-O {[%emt 0:00:10]} 9. Ne2 {[%emt 0:01:04]} c5 {[%emt 0:00:09]} 10. O-O {[%emt 0:01:02]} Nc6 {[%emt 0:01:15]} 11. Be3 {[%emt 0:06:54]} Na5 {[%emt 0:00:11]} 12. dxc5 {[%emt 0:10:54]} Qc7 {[%emt 0:48:24]} 13. Bb3 {[%emt 0:15:15]} b6 {[%emt 0:15:27]} 14. Bd5 {[%emt 0:15:22]} Bb7 {[%emt 0:03:10]} 15. Rb1 {[%emt 0:09:58][%cal Rc5b6]} Bxd5 {[%emt 0:06:11]} 16. cxb6 {[%emt 0:07:35]} axb6 {[%emt 0:00:02] The position is equal.} 17. Bxb6 {[%emt 0:01:51]} ({Reject} 17. Qxd5 Nc4 18. Nd4 Nxe3 (18... Rxa2 19. Bf4 $15) 19. fxe3 Rac8 $15 (19... Qxc3 20. Rxf7 Qxe3+ 21. Kh1 $11)) 17... Qd6 {[%emt 0:00:06]} 18. exd5 {[%emt 0:03:01]} Nc4 {[%emt 0:00:06][%csl LRa2,LRb6]} 19. Bd4 {[%emt 0:00:54] [#] Bxg7 is the strong threat.} Qxd5 {[%emt 0:00:12]} 20. Bxg7 {[%emt 0:08:18] A rather calm draw.   Weighted Error Value: White=0.04 (flawless) /Black=0.03 (flawless) .  OK:         	White=5     	Black=4      Best:        	---       	Black=1} 1/2-1/2

[Event "Sardinia World Festival-A 2024"]
[Site "Orosei"]
[Date "2024.05.01"]
[Round "6.3"]
[White "Sivuk, Vitaly"]
[Black "Shevchenko, Kirill"]
[Result "1/2-1/2"]
[ECO "D45"]
[WhiteElo "2551"]
[BlackElo "2675"]
[Annotator "TA"]
[PlyCount "64"]
[EventDate "2024.04.26"]
[EventType "swiss"]
[EventCountry "ITA"]
[SourceTitle "playchess.com"]
[Source "ChessBase"]
[SourceQuality "1"]
[TimeControl "40/5400+30:1800+30"]

{[%evp 20,64,11,0,7,0,0,-5,14,0,0,10,11,0,22,8,18,0,0,0,0,0,0,0,0,0,0,-14,-7,-23,-29,-43,-21,-50,-31,-23,-21,-31,0,0,0,0,0,0,0,0,0]} 1. c4 {[%emt 0:00:06]} c6 {[%emt 0:01:41]} 2. Nf3 {[%emt 0:01:48]} d5 {[%emt 0:00:20]} 3. e3 {[%emt 0:00:15]} Nf6 {[%emt 0:00:34]} 4. Nc3 {[%emt 0:00:13]} Nbd7 {[%emt 0:04:22]} 5. Qc2 {[%emt 0:04:45]} e6 {[%emt 0:11:22]} 6. b3 {[%emt 0:01:06]} Bd6 {[%emt 0:00:30]} 7. Bb2 {[%emt 0:00:09]} O-O {[%emt 0:00:20]} 8. Be2 {[%emt 0:01:53]} Re8 {[%emt 0:06:16]} 9. O-O {[%emt 0:01:13]} b6 {[%emt 0:02:34]} 10. d4 {[%emt 0:11:55]} Bb7 {[%emt 0:02:09]} 11. Rad1 {[%emt 0:02:45]} Qc7 {[%emt 0:07:38]} 12. Bd3 {[%emt 0:06:58]} Rad8 {[%emt 0:10:25]} 13. Rfe1 {[%emt 0:05:45]} h6 {[%emt 0:05:12]} 14. Rc1 {[%emt 0:18:08]} Qb8 {[%emt 0:07:23]} 15. cxd5 {[%emt 0:01:15]} exd5 {[%emt 0:00:53]} 16. h3 {[%emt 0:02:02]} c5 {[%emt 0:06:13]} 17. Qe2 {[%emt 0:03:14]} Ne4 {[%emt 0:11:00]} 18. Ba6 {[%emt 0:04:46]} cxd4 {[%emt 0:01:32]} 19. Nxe4 {[%emt 0:04:13]} dxe4 {[%emt 0:02:02]} 20. Nxd4 {[%emt 0:00:07][%cal Bf3d4,Bd4f5,Bf5h6,Bh6f7,Bf7d6][%mdl 32]} Bxa6 {[%emt 0:02:37]} 21. Qxa6 {[%emt 0:00:08]} Nc5 {[%emt 0:00:11][%cal Bd7c5,Bc5d3,Bd3c1][%mdl 32]} 22. Qe2 {[%emt 0:01:12]} Rc8 {[%emt 0:06:15] Inhibits Nc6.} 23. Nf5 {[%emt 0:06:39]} Bh2+ {[%emt 0:01:44]} 24. Kf1 {[%emt 0:01:05][%cal Og2g3]} (24. Kh1 $5 Be5 $8 25. Rf1 $11) 24... Be5 {[%emt 0:00:07]} 25. Ba3 {[%emt 0:05:50]} Nd3 {[%emt 0:02:15]} 26. Qg4 $1 {[%emt 0:03:52][%csl LRe4,LRh6]} Nxc1 {[%emt 0:06:27]} 27. Nxh6+ {[%emt 0:02:03]} Kh7 {[%emt 0:00:03]} 28. Nxf7 {[%emt 0:00:12] [#] Threatens to win with Qh5+.} Bf6 {[%emt 0:01:18]} 29. Qh5+ {[%emt 0:04:59] The position is equal.} Kg8 {[%emt 0:00:01] White must now prevent ...Nd3.} 30. Nd6 {[%emt 0:00:09] Qd5+ would now be deadly. Dancing on a razor blade.} Nd3 {[%emt 0:01:05] Strongly threatening ...Re5.} 31. Qf7+ {[%emt 0:00:30]} Kh7 {[%emt 0:00:24] aiming for ...Ne5.} 32. Qh5+ {[%emt 0:00:05]} Kg8 {[%emt 0:00:32] Weighted Error Value: White=0.05 (flawless) /Black=0.05 (flawless) .  Inaccurate:     	---       	Black=1      OK:         	White=6     	Black=10     Best:        	---       	Black=1      Strong:       	White=1     	---} 1/2-1/2

[Event "Sardinia World Festival-A 2024"]
[Site "Orosei"]
[Date "2024.05.01"]
[Round "6.4"]
[White "Van Foreest, Jorden"]
[Black "Erdogmus, Yagiz Kaan"]
[Result "1-0"]
[ECO "B10"]
[WhiteElo "2668"]
[BlackElo "2540"]
[Annotator "TA"]
[PlyCount "77"]
[EventDate "2024.04.26"]
[EventType "swiss"]
[EventCountry "ITA"]
[SourceTitle "playchess.com"]
[Source "ChessBase"]
[SourceQuality "1"]
[TimeControl "40/5400+30:1800+30"]

{[%evp 9,77,0,5,15,18,0,0,0,0,0,0,0,4,0,0,-12,12,10,14,0,0,-8,19,-17,-8,-18,-12,-8,12,0,30,18,97,104,101,100,104,104,94,103,101,110,143,146,168,168,231,227,234,212,228,189,205,214,225,218,364,362,362,352,367,368,369,357,485,446,524,520,572,553]} 1. e4 {[%emt 0:00:04]} c6 {[%emt 0:00:06]} 2. Nf3 {[%emt 0:00:16]} d5 {[%emt 0:00:06]} 3. d3 {[%emt 0:00:20]} Qc7 {[%emt 0:00:51]} 4. Nc3 {[%emt 0:01:21]} dxe4 {[%emt 0:00:35]} 5. dxe4 {[%emt 0:00:26]} e5 {[%emt 0:00:52]} 6. Bc4 {[%emt 0:00:26]} b5 {[%emt 0:05:18]} 7. Bb3 {[%emt 0:00:21]} h6 {[%emt 0:01:36] Inhibits Ng5.} 8. a4 {[%emt 0:06:11] The position is equal.} b4 {[%emt 0:01:17]} 9. Nb1 {[%emt 0:01:28]} Nf6 {[%emt 0:06:30][%cal Of8e7]} 10. Nbd2 {[%emt 0:01:13]} Bc5 {[%emt 0:04:19]} 11. O-O {[%emt 0:02:16]} O-O {[%emt 0:02:07]} 12. Bc4 {[%emt 0:03:17]} Nbd7 {[%emt 0:11:55]} 13. a5 {[%emt 0:04:07]} Bd6 {[%emt 0:05:23]} 14. Qe2 {[%emt 0:04:44]} Nc5 {[%emt 0:01:15]} 15. b3 {[%emt 0:06:09]} Ne6 {[%emt 0:15:05]} 16. Bb2 {[%emt 0:05:05]} Nf4 {[%emt 0:01:23]} 17. Qe1 {[%emt 0:00:27]} Bg4 {[%emt 0:02:47]} 18. g3 {[%emt 0:10:13]} Ne6 {[%emt 0:08:28]} 19. Kg2 {[%emt 0:01:02] Dodges Bh3+} Qd7 {[%emt 0:03:46]} 20. Ng1 {[%emt 0:08:39] Inhibits Bh3+.} (20. Bxe5 $2 Ng5 21. Nxg5 Bxe5 $19) (20. Nxe5 Bxe5 21. Bxe5 Bh3+ 22. Kg1 (22. Kxh3 $2 Nf4+ 23. Kh4 Ng6#) 22... Ng4 $15) 20... Ng5 {[%emt 0:09:31]} (20... Rfd8 $11 {keeps the balance.}) 21. f3 $16 {[%emt 0:01:45] Black is now going downhill.} Bh3+ {[%emt 0:02:40]} 22. Nxh3 {[%emt 0:00:24]} Qxh3+ {[%emt 0:00:05]} 23. Kh1 {[%emt 0:00:05]} Rad8 {[%emt 0:03:24]} 24. Bd3 {[%emt 0:01:40]} Rfe8 {[%emt 0:02:43]} 25. Nc4 {[%emt 0:03:24]} c5 {[%emt 0:03:24]} 26. Qf2 {[%emt 0:03:21]} Qc8 {[%emt 0:00:36]} 27. Qg2 {[%emt 0:02:42] [#] aiming for f4.} Bc7 {[%emt 0:06:28]} (27... Ne6 $142 28. Nxd6 (28. Nxe5 Bxe5 29. Bxe5 Nd4 $16) 28... Rxd6) 28. f4 $18 {[%emt 0:01:04]} Ne6 {[%emt 0:00:01]} 29. Bxe5 {[%emt 0:02:15]} (29. Nxe5 Bxe5 30. fxe5 (30. Bxe5 Ng4 $11) 30... Nd7 $16 (30... Ng4 31. Qf3 $16)) 29... Nd4 {[%emt 0:01:03]} 30. Bxc7 {[%emt 0:05:12]} Qxc7 {[%emt 0:00:02]} 31. e5 {[%emt 0:00:05]} Nd5 {[%emt 0:00:59]} 32. Nd6 {[%emt 0:01:54]} Ne3 {[%emt 0:00:56]} (32... Rxd6 {keeps fighting.} 33. exd6 Qxd6) 33. Nxe8 {[%emt 0:02:03]} Rxe8 {[%emt 0:00:08]} 34. Qe4 {[%emt 0:00:03]} Nxf1 {[%emt 0:00:06]} 35. Qh7+ {[%emt 0:01:13]} ({Less strong is} 35. Rxf1 g6 $16) 35... Kf8 {[%emt 0:00:01]} 36. Rxf1 {[%emt 0:00:08]} Ke7 {[%emt 0:02:07]} 37. Qxg7 {[%emt 0:01:49] White is clearly winning.} Qc6+ {[%emt 0:00:23]} 38. Kg1 {[%emt 0:00:03]} Rf8 {[%emt 0:00:38]} 39. f5 {[%emt 0:00:58] Weighted Error Value: White=0.04 (flawless) /Black=0.30.  Mistake:       	---       	Black=3      Inaccurate:     	White=1     	Black=3      OK:         	White=15    	Black=12     Best:        	White=8     	---} 1-0

[Event "Sardinia World Festival-A 2024"]
[Site "Orosei"]
[Date "2024.05.01"]
[Round "6.5"]
[White "Bharath Subramaniyam H"]
[Black "Murzin, Volodar"]
[Result "1/2-1/2"]
[ECO "C54"]
[WhiteElo "2544"]
[BlackElo "2632"]
[Annotator "TA"]
[PlyCount "53"]
[EventDate "2024.04.26"]
[EventType "swiss"]
[EventCountry "ITA"]
[SourceTitle "playchess.com"]
[Source "ChessBase"]
[SourceQuality "1"]
[TimeControl "40/5400+30:1800+30"]

{[%evp 14,53,9,13,21,17,18,21,20,13,20,23,18,13,20,11,14,19,31,21,41,24,19,0,20,0,15,12,25,20,11,11,16,16,19,15,13,15,20,18,18,16]} 1. e4 {[%emt 0:00:02]} e5 {[%emt 0:00:05]} 2. Nf3 {[%emt 0:00:09]} Nc6 {[%emt 0:00:04]} 3. Bc4 {[%emt 0:00:30]} Bc5 {[%emt 0:00:06]} 4. d3 {[%emt 0:00:35]} Nf6 {[%emt 0:00:10]} 5. O-O {[%emt 0:00:09]} O-O {[%emt 0:04:52]} 6. h3 {[%emt 0:00:07]} h6 {[%emt 0:00:50]} 7. Re1 {[%emt 0:04:27]} d6 {[%emt 0:00:13]} 8. c3 {[%emt 0:00:15]} a6 {[%emt 0:01:22]} 9. a4 {[%emt 0:10:53]} Ba7 {[%emt 0:06:49]} 10. Nbd2 {[%emt 0:05:42][%cal Bb1d2,Bd2f1,Bf1g3][%mdl 32]} Ne7 {[%emt 0:16:53]} 11. Nf1 {[%emt 0:03:51]} Ng6 {[%emt 0:00:29]} 12. Ng3 {[%emt 0:04:48]} c6 {[%emt 0:04:59]} 13. Bb3 {[%emt 0:08:01]} d5 {[%emt 0:10:23]} 14. exd5 {[%emt 0:13:40]} Nxd5 {[%emt 0:00:28]} 15. d4 {[%emt 0:00:39]} ({Don't play} 15. Nxe5 Nxe5 16. Rxe5 Bxf2+ 17. Kxf2 Qf6+ 18. Qf3 Qxe5 $17) 15... exd4 {[%emt 0:00:53]} 16. Nxd4 {[%emt 0:00:48]} Nde7 {[%emt 0:14:44]} 17. Be3 {[%emt 0:44:24]} Nd5 {[%emt 0:00:40]} 18. Bc1 {[%emt 0:00:00]} Nf6 {[%emt 0:06:14]} 19. Be3 {[%emt 0:00:00]} Nd5 $1 {[%emt 0:00:11]} 20. Bxd5 {[%emt 0:00:00]} (20. Qd3 {seems wilder.} Nxe3 21. Rxe3 Bxd4 22. cxd4 Nf4 23. Qe4) 20... Qxd5 {[%emt 0:00:19] [#]} 21. Ndf5 $1 {[%emt 0:00:00] Prevents Nh4} Bxe3 {[%emt 0:15:58] The position is equal.} 22. Rxe3 {[%emt 0:00:00]} Qxd1+ {[%emt 0:00:27]} 23. Rxd1 {[%emt 0:00:00]} a5 {[%emt 0:02:04]} 24. Nd6 {[%emt 0:00:00]} Rb8 {[%emt 0:05:05]} 25. Nge4 {[%emt 0:00:00]} b6 {[%emt 0:01:09]} 26. Nxc8 {[%emt 0:00:00]} Rfxc8 {[%emt 0:00:14]} 27. Red3 {[%emt 0:02:11] Weighted Error Value: White=0.05 (flawless) /Black=0.03 (flawless) .  OK:         	White=6     	Black=7      Best:        	---       	Black=2      Strong:       	---       	Black=1} 1/2-1/2

[Event "Sardinia World Festival-A 2024"]
[Site "Orosei"]
[Date "2024.05.01"]
[Round "6.6"]
[White "Dardha, Daniel"]
[Black "Sokolovsky, Yahli"]
[Result "1/2-1/2"]
[ECO "D32"]
[WhiteElo "2630"]
[BlackElo "2490"]
[Annotator "TA"]
[PlyCount "35"]
[EventDate "2024.04.26"]
[EventType "swiss"]
[EventCountry "ITA"]
[SourceTitle "playchess.com"]
[Source "ChessBase"]
[SourceQuality "1"]
[TimeControl "40/5400+30:1800+30"]

{[%evp 18,35,34,-28,-18,-26,-22,-62,-68,-80,-31,-18,-31,-17,-31,-24,-20,-20,-14,-26]} 1. c4 {[%emt 0:01:14]} e6 {[%emt 0:00:11]} 2. Nf3 {[%emt 0:00:55]} Nf6 {[%emt 0:00:24]} 3. Nc3 {[%emt 0:01:05]} d5 {[%emt 0:00:07]} 4. e3 {[%emt 0:00:25]} c5 {[%emt 0:01:03]} 5. cxd5 {[%emt 0:01:38]} exd5 {[%emt 0:00:05]} 6. Bb5+ {[%emt 0:01:07]} Nc6 {[%emt 0:01:50]} 7. d4 {[%emt 0:00:06]} Bd6 {[%emt 0:04:20]} 8. dxc5 {[%emt 0:06:44]} Bxc5 {[%emt 0:00:05]} 9. O-O {[%emt 0:00:34]} O-O {[%emt 0:00:56]} 10. Qc2 {[%emt 0:07:01]} (10. b3 $14) 10... Bg4 $11 {[%emt 0:09:12]} 11. Rd1 {[%emt 0:23:16][%cal Oc3d5]} Rc8 {[%emt 0:07:35]} 12. Qa4 {[%emt 0:07:22]} (12. Nxd5 {looks sharper.} Nxd5 13. Qxc5 Ncb4 14. Qd4) 12... a6 {[%emt 0:07:45] Black is slightly better.} 13. Bxc6 {[%emt 0:07:44]} Rxc6 {[%emt 0:00:02]} (13... bxc6 $17 14. b3 Re8) 14. Ne5 {[%emt 0:13:42][%csl LRc6,LRg4]} Bxd1 {[%emt 0:09:52] This pair of bishops is nice.} 15. Nxc6 {[%emt 0:01:41]} Bxa4 {[%emt 0:03:02]} 16. Nxd8 {[%emt 0:00:09]} Rxd8 {[%emt 0:04:08]} 17. Nxa4 {[%emt 0:00:07]} Ba7 {[%emt 0:00:48]} 18. Bd2 {[%emt 0:08:03] Weighted Error Value: White=0.23 (precise) /Black=0.11 (very precise) .  Mistake:       	---       	Black=1      Inaccurate:     	White=1     	---        OK:         	White=3     	Black=5      Best:        	White=1     	---} 1/2-1/2